bitfinex-derivatives/quotes_BTCF0:USTF0_20250125
["timestamp","ask_amount","ask_price","bid_price","bid_amount"]
[1737781752277,0.63474555,104590.0,104580.0,0.44264859]
[1737781753273,0.63474555,104590.0,104580.0,0.21343009]
[1737781753779,0.63474555,104590.0,104580.0,0.21443009]
[1737781753983,0.63474555,104590.0,104580.0,0.17257663]
[1737781754179,0.6922911,104590.0,104580.0,0.17257663]
[1737781754374,0.2681051,104580.0,104570.0,0.2292185]
[1737781754575,0.6592051,104580.0,104570.0,0.2292185]
[1737781754974,0.6592051,104580.0,104570.0,0.2710768]
[1737781755577,0.6592051,104580.0,104570.0,0.2292185]
[1737781755778,1.0200051,104580.0,104570.0,0.2292185]
[1737781757281,1.0210051,104580.0,104570.0,0.2292185]
[1737781759484,1.0210051,104580.0,104560.0,0.21676936]
[1737781759485,0.153029,104570.0,104560.0,0.21676936]
[1737781759685,0.57137455,104570.0,104560.0,0.21676936]
[1737781760680,0.57137455,104570.0,104560.0,0.215335]
[1737781761577,0.57237455,104570.0,104560.0,0.215335]
[1737781765186,0.57237455,104570.0,104560.0,0.2571933]
[1737781766373,0.57237455,104570.0,104560.0,0.0623]
[1737781767588,0.57237455,104570.0,104560.0,0.0305]
[1737781767791,0.153043,104560.0,104550.0,0.183052]
[1737781767987,0.153043,104560.0,104550.0,0.2249115]
[1737781767988,0.21058855,104560.0,104550.0,0.2249115]
[1737781768383,0.21058855,104560.0,104550.0,0.26677102]
[1737781769685,0.153043,104560.0,104550.0,0.26677102]
[1737781770490,0.153043,104560.0,104550.0,0.32431657]
[1737781770884,0.154043,104560.0,104550.0,0.32431657]
[1737781771294,0.154043,104560.0,104550.0,0.32431712]
[1737781771992,0.154043,104560.0,104550.0,0.26677157]
[1737781772884,0.21158855,104560.0,104550.0,0.26677157]
[1737781773090,0.6299341,104560.0,104550.0,0.04185952]
[1737781773296,0.153058,104550.0,104540.0,0.2923185]
[1737781773590,0.57140355,104550.0,104540.0,0.2923185]
[1737781774290,0.57140355,104550.0,104540.0,0.0631]
[1737781779300,0.68503411,104550.0,104540.0,0.0631]
[1737781780700,0.153072,104540.0,104530.0,0.0327]
[1737781780901,0.57141755,104540.0,104530.0,0.096]
[1737781782196,0.57241755,104540.0,104530.0,0.098]
[1737781783603,0.6299631,104540.0,104530.0,0.098]
[1737781786705,0.74359366,104540.0,104530.0,0.096]
[1737781787211,0.74259366,104540.0,104530.0,0.096]
[1737781796509,0.6289631,104540.0,104530.0,0.096]
[1737781798208,0.21061755,104540.0,104530.0,0.249087]
[1737781799418,0.21061755,104540.0,104530.0,0.096]
[1737781800317,0.57141755,104540.0,104530.0,0.096]
[1737781800519,0.57141755,104540.0,104530.0,0.13786835]
[1737781801323,0.57141755,104540.0,104530.0,0.096]
[1737781802415,0.68504811,104540.0,104530.0,0.096]
[1737781802915,0.68504811,104540.0,104530.0,0.13787009]
[1737781806727,0.26670256,104540.0,104530.0,0.34850264]
[1737781807019,0.4086383,104540.0,104530.0,0.34850264]
[1737781807216,0.4086383,104540.0,104530.0,0.30663255]
[1737781808425,0.4086383,104540.0,104530.0,0.34850045]
[1737781808624,0.4086383,104540.0,104530.0,0.38957867]
[1737781808919,0.2555663,104540.0,104530.0,0.70930045]
[1737781810317,0.4086383,104540.0,104530.0,0.34850045]
[1737781810518,0.7314574,104540.0,104520.0,0.22931582]
[1737781810723,0.57143255,104530.0,104520.0,0.22931582]
[1737781810918,0.57143255,104530.0,104520.0,0.22445582]
[1737781811420,0.57143255,104530.0,104520.0,0.28611445]
[1737781812021,0.57151358,104530.0,104520.0,0.28611445]
[1737781812825,0.53351768,104530.0,104510.0,0.22871102]
[1737781813129,0.68653765,104520.0,104510.0,0.19159209]
[1737781813325,0.68653765,104520.0,104510.0,0.08279209]
[1737781813628,0.153116,104510.0,104500.0,0.21472528]
[1737781813928,0.6290071,104510.0,104500.0,0.21472528]
[1737781814326,0.9290071,104510.0,104500.0,0.21472528]
[1737781814922,0.6290071,104510.0,104500.0,0.21472528]
[1737781815724,0.60189226,104510.0,104500.0,0.21472528]
[1737781816033,0.153145,104490.0,104480.0,0.213457]
[1737781816224,0.60192126,104490.0,104480.0,0.213457]
[1737781816726,0.60199806,104490.0,104480.0,0.213457]
[1737781816931,0.60199508,104490.0,104480.0,0.213457]
[1737781817126,0.6020174,104490.0,104480.0,0.213457]
[1737781817327,0.60192126,104490.0,104480.0,0.213457]
[1737781821324,0.60201858,104490.0,104480.0,0.213457]
[1737781821531,0.60201172,104490.0,104480.0,0.213457]
[1737781821725,0.60192126,104490.0,104480.0,0.213457]
[1737781823829,0.60201858,104490.0,104480.0,0.213457]
[1737781824038,0.60201309,104490.0,104480.0,0.213457]
[1737781824237,0.60192126,104490.0,104480.0,0.213457]
[1737781824437,0.60201858,104490.0,104480.0,0.213457]
[1737781824737,0.60192126,104490.0,104480.0,0.213457]
[1737781824935,0.60201858,104490.0,104480.0,0.213457]
[1737781828038,9.732e-05,104490.0,104480.0,0.574257]
[1737781828845,9.732e-05,104490.0,104480.0,0.213457]
[1737781829037,9.732e-05,104490.0,104480.0,0.574257]
[1737781829539,0.08807358,104490.0,104480.0,0.574257]
[1737781831230,9.732e-05,104490.0,104480.0,0.574257]
[1737781833847,0.60201858,104490.0,104480.0,0.213457]
[1737781836548,0.60192126,104490.0,104480.0,0.0603]
[1737781837145,0.60201858,104490.0,104480.0,0.0603]
[1737781837345,0.60192126,104490.0,104480.0,0.0603]
[1737781838442,0.60192126,104490.0,104480.0,0.06070972]
[1737781839643,0.60200241,104490.0,104480.0,0.06070972]
[1737781839843,0.60192126,104490.0,104480.0,0.06070972]
[1737781840247,0.60199073,104490.0,104480.0,0.06070972]
[1737781840448,0.60201858,104490.0,104480.0,0.06070972]
[1737781840640,0.60192126,104490.0,104480.0,0.06070972]
[1737781840841,0.60192126,104490.0,104480.0,0.1025998]
[1737781841654,0.80044857,104490.0,104480.0,0.1025998]
[1737781842352,0.43964857,104490.0,104480.0,0.1025998]
[1737781844347,0.383057,104490.0,104480.0,0.1025998]
[1737781844547,0.38315432,104490.0,104480.0,0.1025998]
[1737781844748,0.38313999,104490.0,104480.0,0.1025998]
[1737781844948,0.383057,104490.0,104480.0,0.1025998]
[1737781846357,0.29508074,104490.0,104480.0,0.2557598]
[1737781846545,0.38314846,104490.0,104480.0,0.2557598]
[1737781848550,0.1420272,104490.0,104480.0,0.6165598]
[1737781849955,0.1420272,104490.0,104480.0,0.6263342]
[1737781850649,0.83193058,104490.0,104480.0,0.1025998]
[1737781850851,0.83191737,104490.0,104480.0,0.0422998]
[1737781851054,0.83183326,104490.0,104480.0,0.0422998]
[1737781851262,0.743857,104490.0,104480.0,0.0422998]
[1737781851560,0.83183326,104490.0,104480.0,0.0422998]
[1737781851862,0.83183326,104490.0,104480.0,0.00040972]
[1737781852451,0.743857,104490.0,104480.0,0.00040972]
[1737781853161,0.743857,104490.0,104480.0,0.06460972]
[1737781856749,0.83183326,104490.0,104480.0,0.00040972]
[1737781856956,0.743857,104490.0,104480.0,0.00040972]
[1737781857861,0.743857,104490.0,104480.0,0.03200972]
[1737781858261,0.75339579,104490.0,104480.0,0.03200972]
[1737781858564,0.7822367,104490.0,104480.0,0.03200972]
[1737781861455,0.77269791,104490.0,104480.0,0.03200972]
[1737781861956,0.60201858,104490.0,104480.0,0.03200972]
[1737781862359,0.60192126,104490.0,104480.0,0.03200972]
[1737781862554,0.60201858,104490.0,104480.0,0.03200972]
[1737781862759,0.60192126,104490.0,104480.0,0.03200972]
[1737781866056,0.91492252,104490.0,104480.0,0.03200972]
[1737781868567,0.91501984,104490.0,104480.0,0.03200972]
[1737781868768,0.91492252,104490.0,104480.0,0.03200972]
[1737781869364,0.77269791,104490.0,104480.0,0.03200972]
[1737781869871,0.74254312,104490.0,104480.0,0.03200972]
[1737781870169,0.74246585,104490.0,104480.0,0.03200972]
[1737781871363,0.74253543,104490.0,104480.0,0.03200972]
[1737781871563,0.74246585,104490.0,104480.0,0.03200972]
[1737781872961,0.74256165,104490.0,104480.0,0.03200972]
[1737781873162,0.74246585,104490.0,104480.0,0.03200972]
[1737781874071,0.68472165,104490.0,104470.0,0.26853462]
[1737781874268,0.15325732,104480.0,104470.0,0.31042898]
[1737781874461,0.58932085,104490.0,104470.0,0.31042898]
[1737781874771,0.58932085,104490.0,104470.0,0.19915571]
[1737781874967,0.6294484,104480.0,104470.0,0.25269215]
[1737781876166,0.5717042,104480.0,104470.0,0.25269215]
[1737781876873,0.15316,104480.0,104470.0,0.31043635]
[1737781877072,0.15416,104480.0,104470.0,0.35233205]
[1737781877370,0.15416,104480.0,104470.0,0.38503205]
[1737781878571,0.001,104480.0,104470.0,0.38503205]
[1737781878771,0.74246885,104490.0,104470.0,0.38503205]
[1737781878969,0.74246885,104490.0,104470.0,0.38703205]
[1737781879165,0.74246885,104490.0,104470.0,0.34513635]
[1737781879675,0.68472465,104490.0,104470.0,0.37536157]
[1737781880474,0.68472465,104490.0,104480.0,0.15316]
[1737781880680,0.32392465,104490.0,104480.0,0.15316]
[1737781880967,0.32392465,104490.0,104480.0,0.19505473]
[1737781881276,0.68472465,104490.0,104480.0,0.19505473]
[1737781883174,0.68472465,104490.0,104480.0,0.19705473]
[1737781883979,0.6563199,104490.0,104480.0,0.19705473]
[1737781889375,0.82709655,104490.0,104480.0,0.19705473]
[1737781892977,0.82709655,104490.0,104480.0,0.15516]
[1737781896384,0.6563199,104490.0,104480.0,0.15516]
[1737781899584,0.6563199,104490.0,104480.0,0.19705088]
[1737781902094,0.1423719,104490.0,104480.0,0.25477767]
[1737781902600,0.1423719,104490.0,104480.0,0.61557767]
[1737781902899,0.71404469,104490.0,104480.0,0.19705088]
[1737781903099,0.6563179,104490.0,104480.0,0.19705088]
[1737781904688,0.6563179,104490.0,104480.0,0.2386242]
[1737781904893,0.82709455,104490.0,104480.0,0.2386242]
[1737781908206,0.68472265,104490.0,104480.0,0.2386242]
[1737781909099,0.68472265,104490.0,104480.0,0.19705088]
[1737781911113,0.74244944,104490.0,104480.0,0.19705088]
[1737781911814,0.77244944,104490.0,104480.0,0.19705088]
[1737781912202,0.77244944,104490.0,104480.0,0.04389088]
[1737781912400,0.77244944,104490.0,104480.0,0.002]
[1737781920810,1.16594944,104490.0,104480.0,0.002]
[1737781921717,1.16594944,104490.0,104480.0,0.04389586]
[1737781922510,1.17565759,104490.0,104480.0,0.002]
[1737781923116,1.00488094,104490.0,104480.0,0.002]
[1737781923805,1.06260773,104490.0,104480.0,0.04141294]
[1737781924008,1.26718852,104490.0,104430.0,0.3608]
[1737781924210,0.26867758,104440.0,104430.0,0.19500522]
[1737781924405,0.26867758,104440.0,104430.0,0.19421517]
[1737781924406,0.21095079,104440.0,104430.0,0.19421517]
[1737781924621,0.21095079,104440.0,104430.0,0.153231]
[1737781924809,0.21095079,104440.0,104430.0,0.04098515]
[1737781924810,0.57175079,104440.0,104430.0,0.04098515]
[1737781925006,0.153234,104430.0,104420.0,0.55610297]
[1737781925213,0.57176079,104430.0,104420.0,0.50038682]
[1737781925515,0.62948758,104430.0,104420.0,0.45940297]
[1737781925714,0.60212879,104430.0,104420.0,0.45940297]
[1737781925912,0.69022358,104430.0,104420.0,0.45940297]
[1737781926314,0.60212879,104430.0,104420.0,0.45940297]
[1737781926509,0.69022358,104430.0,104420.0,0.45940297]
[1737781929323,0.69983576,104430.0,104420.0,0.45940297]
[1737781930413,0.61174097,104430.0,104420.0,0.45940297]
[1737781930721,0.60211779,104440.0,104420.0,0.61265097]
[1737781930916,0.34284542,104430.0,104420.0,0.214648]
[1737781931318,0.25475063,104430.0,104420.0,0.66354279]
[1737781932019,0.15495063,104430.0,104420.0,0.66354279]
[1737781932211,0.10505063,104430.0,104420.0,0.66354279]
[1737781932407,0.16983376,104440.0,104430.0,0.153234]
[1737781932719,0.16983376,104440.0,104430.0,0.60212879]
[1737781933219,0.16983376,104440.0,104430.0,0.69022358]
[1737781933521,0.1485528,104470.0,104430.0,0.6382348]
[1737781933714,0.23329931,104470.0,104460.0,0.15319]
[1737781933915,0.20149931,104470.0,104460.0,0.15319]
[1737781936318,0.20249931,104470.0,104460.0,0.15319]
[1737781936524,0.1177528,104470.0,104460.0,0.15319]
[1737781937024,0.35902259,104470.0,104450.0,0.61820538]
[1737781938220,0.20584759,104470.0,104450.0,0.51414538]
[1737781938425,0.15319,104460.0,104450.0,0.15334538]
[1737781938630,0.18419,104460.0,104450.0,0.15334538]
[1737781939221,0.30318479,104460.0,104450.0,0.00014338]
[1737781941029,0.21509,104460.0,104450.0,0.00014338]
[1737781941721,0.57589,104460.0,104450.0,0.00014338]
[1737781942526,0.57589,104460.0,104450.0,0.15334738]
[1737781945825,0.031,104460.0,104450.0,0.24144217]
[1737781946230,0.031,104460.0,104450.0,0.15334738]
[1737781946923,0.032,104460.0,104450.0,0.15334738]
[1737781947124,0.18519,104460.0,104450.0,0.15334738]
[1737781949831,0.032,104460.0,104450.0,0.15334738]
[1737781951733,0.032,104460.0,104450.0,0.18634738]
[1737781951932,0.001,104460.0,104450.0,0.18634738]
[1737781952133,0.001,104460.0,104450.0,0.54714738]
[1737781952338,0.001,104460.0,104450.0,0.63524217]
[1737781952532,0.001,104460.0,104450.0,0.66804217]
[1737781952941,0.001,104460.0,104450.0,0.70993638]
[1737781957748,0.001,104460.0,104450.0,0.7194581]
[1737781959037,0.001,104460.0,104450.0,0.7194591]
[1737781959948,0.001,104460.0,104450.0,0.75952851]
[1737781961251,0.001,104460.0,104450.0,0.7194591]
[1737781961645,0.001,104460.0,104450.0,0.75952851]
[1737781962851,0.001,104460.0,104450.0,0.7194591]
[1737781963950,0.001,104460.0,104450.0,0.75947578]
[1737781965151,0.001,104460.0,104450.0,0.7194591]
[1737781965453,0.001,104460.0,104450.0,0.76113236]
[1737781965843,0.001,104460.0,104450.0,0.84922715]
[1737781966150,0.00143664,104470.0,104460.0,0.15319]
[1737781966348,0.00143664,104470.0,104460.0,0.60208479]
[1737781966548,0.00143664,104470.0,104460.0,0.676079]
[1737781966749,0.08618315,104470.0,104460.0,0.676079]
[1737781967453,0.08718315,104470.0,104460.0,0.676079]
[1737781970660,0.00243664,104470.0,104460.0,0.676079]
[1737781971744,0.00243664,104470.0,104460.0,0.643979]
[1737781974656,0.00243664,104470.0,104460.0,0.676779]
[1737781978548,0.15561164,104470.0,104460.0,0.40269421]
[1737781978747,0.18811164,104470.0,104460.0,0.40269421]
[1737781978952,0.18811164,104470.0,104460.0,0.596363]
[1737781981161,0.03493664,104470.0,104460.0,0.596363]
[1737781982356,0.11968315,104470.0,104460.0,0.68445779]
[1737781984750,0.11968315,104470.0,104460.0,0.643979]
[1737781985655,0.03493664,104470.0,104460.0,0.643979]
[1737781985855,0.00243664,104470.0,104460.0,0.643979]
[1737781987468,0.00243664,104470.0,104460.0,0.6857617]
[1737781987966,0.03283664,104470.0,104460.0,0.643979]
[1737781989063,0.03283664,104470.0,104460.0,0.55588421]
[1737781989565,0.03283664,104470.0,104460.0,0.643979]
[1737781992070,0.03283664,104470.0,104460.0,0.714459]
[1737781993473,0.00243664,104470.0,104460.0,0.714459]
[1737781993765,0.00243664,104470.0,104460.0,0.66814255]
[1737781995767,0.00243664,104470.0,104460.0,0.75623734]
[1737781996362,0.20174451,104470.0,104460.0,0.75623734]
[1737781996562,0.20030787,104470.0,104460.0,0.88563154]
[1737781996764,0.20030787,104470.0,104460.0,0.91833154]
[1737781998082,0.20030787,104470.0,104460.0,0.87703213]
[1737781998573,0.20030787,104470.0,104460.0,0.63896196]
[1737781998761,0.29530787,104470.0,104460.0,0.63896196]
[1737781999164,0.29530787,104470.0,104460.0,0.72705675]
[1737781999364,0.096,104470.0,104460.0,0.79741675]
[1737782002168,0.001,104470.0,104460.0,0.88583163]
[1737782002368,0.001,104470.0,104460.0,0.94923163]
[1737782002568,0.001,104470.0,104460.0,0.98203163]
[1737782002769,0.08641766,104470.0,104460.0,0.98203163]
[1737782003171,0.08641766,104470.0,104460.0,0.89393684]
[1737782003373,0.08641766,104470.0,104460.0,0.98203163]
[1737782003677,0.08641766,104470.0,104460.0,0.89393684]
[1737782004172,0.08641766,104470.0,104460.0,0.98203163]
[1737782005779,0.25615892,104480.0,104470.0,0.153175]
[1737782006084,0.25615892,104480.0,104470.0,0.71414408]
[1737782006375,0.11403359,104480.0,104470.0,0.75576358]
[1737782007178,0.11403359,104480.0,104470.0,0.797648]
[1737782007480,0.14212533,104490.0,104480.0,0.153161]
[1737782007679,0.14212533,104490.0,104480.0,0.71792958]
[1737782008181,0.14212533,104490.0,104480.0,0.759814]
[1737782008380,0.14212533,104490.0,104480.0,0.824214]
[1737782009381,0.00014338,104500.0,104480.0,0.671053]
[1737782009575,0.00014338,104500.0,104490.0,0.60204079]
[1737782009881,0.00014338,104500.0,104490.0,0.64366029]
[1737782010477,0.00014338,104500.0,104490.0,0.68554471]
[1737782010879,0.00014338,104500.0,104490.0,0.64392521]
[1737782014481,0.08823817,104500.0,104490.0,0.55583042]
[1737782014687,0.11993817,104500.0,104490.0,0.55583042]
[1737782015077,0.03184338,104500.0,104490.0,0.513946]
[1737782017275,0.00014338,104500.0,104490.0,0.69013558]
[1737782017479,0.00014338,104500.0,104490.0,0.63304079]
[1737782017680,0.00014338,104500.0,104490.0,0.153146]
[1737782017978,0.03274338,104500.0,104490.0,0.153146]
[1737782018382,0.03274338,104500.0,104490.0,0.24124079]
[1737782018577,0.39354338,104500.0,104490.0,0.153146]
[1737782018777,0.03274338,104500.0,104490.0,0.153146]
[1737782018983,0.18587438,104500.0,104490.0,0.153146]
[1737782019375,0.54667438,104500.0,104490.0,0.153146]
[1737782019976,0.03274338,104500.0,104490.0,0.153146]
[1737782020180,0.39354338,104500.0,104490.0,0.19503208]
[1737782021084,0.03274338,104500.0,104490.0,0.19503208]
[1737782023186,0.03274338,104500.0,104490.0,0.153146]
[1737782023881,0.00014338,104500.0,104490.0,0.60204079]
[1737782024295,0.00014338,104500.0,104490.0,0.69013558]
[1737782024494,0.00014338,104500.0,104490.0,0.63404079]
[1737782024681,0.00014338,104500.0,104490.0,0.72213558]
[1737782024885,0.00014338,104500.0,104490.0,0.76401545]
[1737782026095,0.00014338,104500.0,104490.0,0.72213558]
[1737782027693,0.11671679,104520.0,104490.0,0.65165169]
[1737782027898,0.11671679,104520.0,104510.0,0.60201179]
[1737782028198,0.00143609,104520.0,104510.0,0.67209179]
[1737782028396,0.00143609,104520.0,104510.0,0.70359179]
[1737782035303,0.00143609,104520.0,104510.0,0.71306448]
[1737782035709,0.06174338,104530.0,104510.0,0.55994748]
[1737782035906,0.06174338,104530.0,104520.0,0.60199679]
[1737782036412,0.06174338,104530.0,104520.0,0.513902]
[1737782039917,0.06174338,104530.0,104520.0,0.60199679]
[1737782041514,0.14983817,104530.0,104520.0,0.3608]
[1737782041718,0.66373617,104530.0,104510.0,0.153115]
[1737782041917,0.3914,104520.0,104510.0,0.153115]
[1737782042420,0.0306,104520.0,104510.0,0.153115]
[1737782046820,0.63260179,104520.0,104500.0,0.52364806]
[1737782047124,0.217217,104510.0,104500.0,0.55433079]
[1737782047422,0.217217,104510.0,104500.0,0.51407138]
[1737782048124,0.217217,104510.0,104500.0,0.19515164]
[1737782048825,0.30531179,104510.0,104500.0,0.04202364]
[1737782049022,0.66611179,104510.0,104500.0,0.04202364]
[1737782050123,0.66611179,104510.0,104500.0,0.00014338]
[1737782053024,0.65512012,104510.0,104480.0,0.15459344]
[1737782053223,0.69013558,104490.0,104470.0,0.153173]
[1737782053529,0.63275579,104480.0,104470.0,0.153173]
[1737782054223,0.66295579,104480.0,104470.0,0.1950672]
[1737782055018,0.574861,104480.0,104470.0,0.1950672]
[1737782056233,0.605861,104480.0,104470.0,0.1950672]
[1737782058930,0.605861,104480.0,104470.0,0.153173]
[1737782072036,0.66359612,104480.0,104470.0,0.153173]
[1737782072240,0.66359612,104480.0,104470.0,0.19506761]
[1737782072428,0.63339612,104480.0,104470.0,0.19506761]
[1737782073431,0.63339612,104480.0,104470.0,0.153173]
[1737782076440,0.63339612,104480.0,104470.0,0.19506761]
[1737782077037,0.63339612,104480.0,104470.0,0.04189461]
[1737782077038,0.69113124,104480.0,104470.0,0.04189461]
[1737782077940,0.69113124,104480.0,104460.0,0.15332838]
[1737782078140,0.41853512,104470.0,104460.0,0.15332838]
[1737782078541,0.05773512,104470.0,104460.0,0.51412838]
[1737782078729,0.74665642,104480.0,104470.0,0.153176]
[1737782078935,0.80439154,104480.0,104470.0,0.153176]
[1737782080648,0.80439154,104480.0,104470.0,0.19507112]
[1737782081348,0.59349542,104480.0,104470.0,0.19507112]
[1737782081640,0.20199542,104480.0,104470.0,0.59776331]
[1737782081834,0.20199542,104480.0,104470.0,0.63076287]
[1737782082249,0.23086045,104480.0,104470.0,0.63076287]
[1737782083643,0.17312533,104480.0,104470.0,0.63076287]
[1737782089147,0.14212533,104480.0,104470.0,0.71874056]
[1737782089350,0.25594426,104480.0,104470.0,0.80216431]
[1737782093044,0.20209138,104480.0,104470.0,0.80216431]
[1737782094049,0.11396231,104490.0,104480.0,0.153161]
[1737782094251,0.11396231,104490.0,104480.0,0.64383044]
[1737782096859,0.00014338,104490.0,104480.0,0.64383044]
[1737782097051,0.00014338,104490.0,104480.0,0.55585275]
[1737782098061,0.00014338,104490.0,104480.0,0.513961]
[1737782099756,0.00014338,104490.0,104480.0,0.60193869]
[1737782103548,0.00014338,104490.0,104480.0,0.64382379]
[1737782105749,0.00014338,104490.0,104480.0,0.61356396]
[1737782108658,0.00014338,104490.0,104480.0,0.5558461]
[1737782108960,0.05786124,104490.0,104480.0,0.5558461]
[1737782109158,0.05786124,104490.0,104470.0,0.65870483]
[1737782109159,0.60181224,104490.0,104470.0,0.65870483]
[1737782109364,0.09021786,104480.0,104470.0,0.62670483]
[1737782109660,0.09021786,104480.0,104470.0,0.59370483]
[1737782110461,0.09021786,104480.0,104470.0,0.584052]
[1737782112463,0.09021786,104480.0,104470.0,0.62581766]
[1737782112655,0.09021786,104480.0,104470.0,0.55573766]
[1737782112855,0.09021786,104480.0,104470.0,0.513972]
[1737782114058,0.50873572,104480.0,104460.0,0.47261852]
[1737782114374,0.08951786,104470.0,104460.0,0.55541535]
[1737782115063,0.11991786,104470.0,104460.0,0.59731067]
[1737782117163,0.53843572,104470.0,104460.0,0.08332567]
[1737782117466,0.63389386,104470.0,104460.0,0.0420387]
[1737782117661,0.48071786,104470.0,104450.0,0.0015396]
[1737782117965,0.21090786,104460.0,104450.0,0.0015396]
[1737782118261,0.47623572,104460.0,104440.0,0.28662429]
[1737782118460,0.63502286,104450.0,104440.0,0.28662429]
[1737782119759,0.66536208,104450.0,104440.0,0.28662429]
[1737782120559,0.66536208,104450.0,104440.0,0.18682429]
[1737782123254,0.15322,104440.0,104430.0,0.34369336]
[1737782123461,0.60207708,104440.0,104430.0,0.00014338]
[1737782123665,0.63327708,104440.0,104430.0,0.00014338]
[1737782126165,0.51402,104440.0,104430.0,0.15337738]
[1737782126373,0.51402,104440.0,104430.0,0.18487738]
[1737782126662,0.51402,104440.0,104430.0,0.21617738]
[1737782126863,0.15322,104440.0,104430.0,0.21617738]
[1737782127068,0.51402,104440.0,104430.0,0.21617738]
[1737782129388,0.60207708,104440.0,104430.0,0.21617738]
[1737782131163,0.51402,104440.0,104430.0,0.21617738]
[1737782132776,0.60207708,104440.0,104430.0,0.21617738]
[1737782136973,0.60207708,104440.0,104430.0,0.18487738]
[1737782141377,0.68683373,104440.0,104430.0,0.18487738]
[1737782141682,0.71436067,104440.0,104430.0,0.18487738]
[1737782143277,0.77215268,104440.0,104430.0,0.00014338]
[1737782143474,0.153234,104430.0,104410.0,0.51549745]
[1737782143671,0.11558402,104420.0,104410.0,0.51549745]
[1737782143871,0.26883302,104420.0,104410.0,0.514061]
[1737782144270,0.26883302,104420.0,104410.0,0.544161]
[1737782144482,0.21104101,104420.0,104410.0,0.58607657]
[1737782144781,0.21104101,104420.0,104410.0,0.62799215]
[1737782144980,0.26883302,104420.0,104410.0,0.62999215]
[1737782145176,0.21104101,104420.0,104410.0,0.66279215]
[1737782145378,0.21204101,104420.0,104410.0,0.66279215]
[1737782145575,0.05879201,104420.0,104410.0,0.66279215]
[1737782145769,0.001,104420.0,104410.0,0.69599215]
[1737782145984,0.08907908,104420.0,104410.0,0.69599215]
[1737782146176,0.08907908,104420.0,104410.0,0.69598097]
[1737782146374,0.08907908,104420.0,104410.0,0.69599215]
[1737782146774,0.001,104420.0,104410.0,0.69599215]
[1737782147785,0.25608002,104420.0,104410.0,0.65407657]
[1737782151386,0.23034017,104420.0,104410.0,0.04391557]
[1737782151679,0.84018917,104420.0,104410.0,0.01255847]
[1737782152886,0.83918917,104420.0,104410.0,0.01255847]
[1737782153077,0.83918917,104420.0,104410.0,0.002]
[1737782155394,0.153263,104410.0,104400.0,0.1]
[1737782155693,0.60214208,104410.0,104400.0,0.1]
[1737782156487,0.60214208,104410.0,104400.0,0.08523441]
[1737782157191,0.16277645,104420.0,104400.0,0.53411349]
[1737782157497,0.153251,104420.0,104410.0,0.217763]
[1737782158087,0.24145846,104430.0,104410.0,0.30584208]
[1737782158287,0.24145846,104430.0,104410.0,0.578563]
[1737782158485,0.25115195,104430.0,104410.0,0.578563]
[1737782158690,0.24145846,104430.0,104410.0,0.61189542]
[1737782159001,0.24145846,104430.0,104410.0,0.25109542]
[1737782159189,0.24145846,104430.0,104410.0,0.61189542]
[1737782159392,0.24145846,104430.0,104410.0,0.25109542]
[1737782159791,0.24145846,104430.0,104410.0,0.61189542]
[1737782160901,0.19871538,104420.0,104410.0,0.61189542]
[1737782161097,0.19871538,104420.0,104410.0,0.578563]
[1737782161797,0.19871538,104420.0,104410.0,0.65383435]
[1737782164095,0.08516373,104420.0,104410.0,0.81182549]
[1737782164293,0.08516373,104420.0,104410.0,0.85349768]
[1737782164686,0.25563459,104430.0,104420.0,0.24132808]
[1737782164891,0.25563459,104430.0,104420.0,0.67739149]
[1737782167102,0.25563459,104430.0,104420.0,0.67738589]
[1737782167299,0.20091116,104450.0,104420.0,0.98213597]
[1737782167505,0.31378792,104450.0,104440.0,0.96289808]
[1737782167702,0.31378792,104450.0,104440.0,1.03815589]
[1737782167902,0.31378792,104450.0,104440.0,1.10055589]
[1737782168607,0.26388792,104450.0,104440.0,1.10055589]
[1737782169501,0.00014338,104460.0,104440.0,0.94733689]
[1737782169697,0.00014338,104460.0,104450.0,0.67196408]
[1737782169904,0.00014338,104460.0,104450.0,0.74722189]
[1737782170205,0.42744474,104470.0,104460.0,0.15319]
[1737782170402,0.54286647,104480.0,104470.0,0.153175]
[1737782170702,0.00143645,104480.0,104470.0,0.67729047]
[1737782170898,0.00143645,104480.0,104470.0,0.63540373]
[1737782171200,0.19859982,104500.0,104490.0,0.153146]
[1737782171400,0.19859982,104500.0,104490.0,0.96282508]
[1737782171904,0.19859982,104500.0,104490.0,0.183246]
[1737782172495,0.19859982,104500.0,104490.0,0.27132508]
[1737782172805,0.19859982,104500.0,104490.0,0.66462508]
[1737782173007,0.48358145,104510.0,104500.0,0.153131]
[1737782173298,0.48358145,104510.0,104500.0,0.60201008]
[1737782174503,0.00014338,104510.0,104500.0,0.60201008]
[1737782175001,0.00014338,104510.0,104500.0,0.513931]
[1737782175313,0.00014338,104510.0,104500.0,0.584331]
[1737782175499,0.00014338,104510.0,104500.0,0.513931]
[1737782175706,0.00014338,104510.0,104500.0,0.584331]
[1737782179012,0.00014338,104510.0,104500.0,0.67241008]
[1737782180617,0.0633,104530.0,104510.0,0.15311]
[1737782180805,0.0633,104530.0,104510.0,0.60198908]
[1737782181803,0.06344338,104530.0,104510.0,0.60213246]
[1737782182507,0.06344338,104530.0,104510.0,0.51405338]
[1737782183206,0.21653138,104530.0,104510.0,0.51405338]
[1737782183605,0.96278108,104520.0,104510.0,0.00014338]
[1737782184105,0.24118108,104520.0,104510.0,0.00014338]
[1737782184310,0.60198108,104520.0,104510.0,0.00014338]
[1737782185508,0.24118108,104520.0,104510.0,0.00014338]
[1737782185709,0.24118108,104520.0,104510.0,0.15326038]
[1737782186111,0.153102,104520.0,104510.0,0.15326038]
[1737782187107,0.60198108,104520.0,104510.0,0.00014338]
[1737782187303,0.53695816,104520.0,104500.0,0.153127]
[1737782187518,0.63360308,104510.0,104490.0,0.513942]
[1737782187716,0.12097908,104500.0,104490.0,0.513942]
[1737782187913,0.12097908,104500.0,104490.0,0.153142]
[1737782188115,0.27411008,104500.0,104490.0,0.153142]
[1737782190617,0.30611008,104500.0,104490.0,0.153142]
[1737782193516,0.218031,104500.0,104490.0,0.153142]
[1737782195415,0.0649,104500.0,104490.0,0.153142]
[1737782195617,0.0649,104500.0,104490.0,0.513942]
[1737782195914,0.032,104500.0,104490.0,0.60202108]
[1737782196120,0.03174338,104510.0,104500.0,0.153132]
[1737782196316,0.03174338,104510.0,104500.0,0.546832]
[1737782196821,0.03174338,104510.0,104500.0,0.63491108]
[1737782197126,0.03174338,104510.0,104500.0,0.62210015]
[1737782199121,0.03174338,104510.0,104500.0,0.71017923]
[1737782199318,0.00014338,104510.0,104500.0,0.71017923]
[1737782200418,0.00014338,104510.0,104500.0,0.78061923]
[1737782201227,0.0321,104520.0,104500.0,0.55221908]
[1737782201521,0.0321,104520.0,104510.0,0.60199608]